bitfinex/quotes_SOLUSD_20220101
["timestamp","ask_amount","ask_price","bid_price","bid_amount"]
[1641031517972,9.4231,173.22,173.08,148.3217]
[1641031518172,1.42669368,173.21,173.08,148.3217]
[1641031518375,8.6664,173.16,173.08,148.3217]
[1641031518576,8.9264,173.16,173.08,148.3217]
[1641031518977,8.9264,173.16,173.08,148.5817]
[1641031519172,8.9264,173.16,173.08,148.8217]
[1641031519673,8.9264,173.16,173.09,8.6658]
[1641031521076,8.9264,173.16,173.09,8.9258]
[1641031521676,8.6664,173.16,173.09,8.9258]
[1641031523074,8.9264,173.16,173.09,8.9258]
[1641031523275,28.888,173.2,173.09,8.9258]
[1641031523475,29.648,173.2,173.09,8.9258]
[1641031524580,8.6663,173.16,173.09,8.9258]
[1641031525078,8.9263,173.16,173.09,8.9258]
[1641031525300,8.9263,173.16,173.09,0.26]
[1641031525501,8.9263,173.16,173.08,148.5817]
[1641031526301,8.6655,173.18,173.08,149.0817]
[1641031526500,8.9255,173.18,173.08,164.1361]
[1641031526900,0.26,173.18,173.08,164.1361]
[1641031527301,29.6444,173.23,173.08,164.1361]
[1641031527502,8.6649,173.19,173.08,164.1361]
[1641031527699,8.6649,173.19,173.08,163.8761]
[1641031527899,9.4249,173.19,173.08,163.8761]
[1641031529002,9.4249,173.19,173.08,164.1361]
[1641031533203,9.4249,173.19,173.08,157.7481]
[1641031534706,9.4249,173.19,173.08,156.9881]
[1641031534904,10.85159368,173.19,173.08,156.9881]
[1641031536509,10.85159368,173.19,173.08,157.2481]
[1641031537607,9.4249,173.19,173.08,157.2481]
[1641031537806,8.9249,173.19,173.08,157.7481]
[1641031539309,8.9249,173.19,173.08,163.6461]
[1641031540512,8.9249,173.19,173.08,157.7481]
[1641031540912,9.4249,173.19,173.08,157.7481]
[1641031541412,8.9249,173.19,173.08,157.7481]
[1641031541615,8.9249,173.19,173.08,165.0751]
[1641031541814,10.21957168,173.2,173.08,165.0751]
[1641031542015,1.55557168,173.2,173.08,165.0751]
[1641031542215,1.55557168,173.2,173.09,1.42669368]
[1641031542413,1.55557168,173.2,173.14,8.6617]
[1641031542616,1.55557168,173.2,173.15,31.69998162]
[1641031542917,1.55557168,173.23,173.15,32.19998162]
[1641031543124,1.55557168,173.23,173.15,32.45998162]
[1641031544013,1.55557168,173.23,173.15,0.76]
[1641031544216,10.21767168,173.24,173.13,29.6323]
[1641031544415,8.923,173.23,173.15,8.6627]
[1641031544615,10.21857168,173.23,173.15,8.9227]
[1641031545215,10.21857168,173.23,173.15,0.26]
[1641031545615,10.21857168,173.23,173.12,24.03222724]
[1641031546014,10.97857168,173.23,173.12,24.03222724]
[1641031546718,10.97857168,173.23,173.14,8.6637]
[1641031547115,10.97857168,173.23,173.14,8.9237]
[1641031549226,10.47857168,173.23,173.14,9.4237]
[1641031551629,10.47857168,173.23,173.14,8.9237]
[1641031551831,10.97857168,173.23,173.14,8.9237]
[1641031552328,10.97857168,173.23,173.14,9.4237]
[1641031552729,10.97857168,173.23,173.14,8.9237]
[1641031553129,10.47857168,173.23,173.14,9.4237]
[1641031555129,10.47857168,173.23,173.14,8.9237]
[1641031555337,10.47857168,173.23,173.14,9.4237]
[1641031556131,8.923,173.23,173.14,9.4237]
[1641031557332,9.423,173.23,173.14,9.4237]
[1641031557534,9.423,173.23,173.14,8.9237]
[1641031557735,9.423,173.23,173.14,9.4237]
[1641031558136,8.923,173.23,173.14,9.4237]
[1641031559236,8.923,173.23,173.14,8.9237]
[1641031559436,8.923,173.23,173.14,9.4237]
[1641031561238,10.97857168,173.23,173.14,8.9237]
[1641031561639,10.97857168,173.23,173.14,0.26]
[1641031562041,1.55557168,173.22,173.13,8.9244]
[1641031562242,8.6646,173.19,173.13,8.9244]
[1641031562439,8.6646,173.19,173.13,8.6644]
[1641031563440,8.6646,173.19,173.13,9.1644]
[1641031563941,8.6638,173.2,173.13,9.4244]
[1641031564340,8.9238,173.2,173.13,9.4244]
[1641031566349,10.47937168,173.2,173.13,8.6644]
[1641031567470,10.47937168,173.2,173.13,8.9244]
[1641031567868,10.47937168,173.2,173.13,8.6644]
[1641031568570,8.9238,173.2,173.13,9.1644]
[1641031568969,8.82465963,173.2,173.13,9.1644]
[1641031569169,8.82465963,173.2,173.13,8.6644]
[1641031569672,10.38023131,173.2,173.13,8.6644]
[1641031570872,10.88023131,173.2,173.13,8.9244]
[1641031571272,10.62023131,173.2,173.13,8.9244]
[1641031571473,10.12023131,173.2,173.13,9.4244]
[1641031572473,8.82465963,173.2,173.13,9.4244]
[1641031573274,8.56465963,173.2,173.13,9.4244]
[1641031575480,9.06465963,173.2,173.13,9.4244]
[1641031575680,8.56465963,173.2,173.13,9.4244]
[1641031577483,9.32465963,173.2,173.12,8.665]
[1641031578082,8.82465963,173.2,173.12,8.665]
[1641031578487,8.82465963,173.2,173.12,9.165]
[1641031579584,8.82465963,173.2,173.12,9.425]
[1641031582288,8.56465963,173.2,173.12,9.425]
[1641031583992,8.6633,173.22,173.12,9.425]
[1641031584592,8.6633,173.22,173.12,8.925]
[1641031587021,8.9233,173.22,173.12,8.665]
[1641031588321,8.6633,173.22,173.12,8.925]
[1641031588525,10.21797168,173.23,173.12,8.925]
[1641031588721,0.26,173.23,173.12,8.925]
[1641031589521,1.81557168,173.24,173.12,8.925]
[1641031590224,0.26,173.24,173.12,8.925]
[1641031590423,0.26,173.24,173.12,8.665]
[1641031590725,8.6621,173.24,173.12,8.665]
[1641031590925,10.71767168,173.24,173.12,8.665]
[1641031591126,10.97767168,173.24,173.12,8.665]
[1641031591726,10.97767168,173.24,173.12,8.925]
[1641031593230,8.6644,173.2,173.12,8.165]
[1641031593430,0.5,173.2,173.06,8.4562]
[1641031593730,0.76,173.2,173.11,8.6654]
[1641031593929,2.31557168,173.2,173.11,8.6654]
[1641031594229,1.42669368,173.19,172.99,78.7523]
[1641031594432,6.72069368,173.19,172.99,78.7523]
[1641031594630,6.98069368,173.19,173.01,8.6695]
[1641031594829,6.98069368,173.19,173.0,75.8521]
[1641031594830,2.98226536,173.18,173.0,75.8521]
[1641031595030,3.24226536,173.18,173.0,75.8521]
[1641031595231,1.42669368,173.17,172.98,94.5]
[1641031595430,1.92669368,173.17,172.97,25.17367202]
[1641031595632,8.6721,173.07,172.97,25.17367202]
[1641031596030,9.4321,173.07,172.97,25.17367202]
[1641031596836,9.4321,173.07,172.97,34.34517202]
[1641031598135,9.4321,173.07,172.97,34.60517202]
[1641031598337,9.4321,173.07,172.97,9.4315]
[1641031598536,9.4321,173.07,172.97,0.76]
[1641031598735,8.9321,173.07,172.97,0.26]
[1641031598938,9.4321,173.07,172.96,0.26]
[1641031599134,9.4321,173.07,172.94,73.2335]
[1641031599335,9.4321,173.07,172.95,24.06426458]
[1641031599535,8.9321,173.07,172.95,24.82426458]
[1641031599935,8.9321,173.07,172.98,8.671]
[1641031600336,8.9321,173.07,172.98,9.431]
[1641031602040,8.9321,173.07,172.98,0.76]
[1641031602240,9.4321,173.07,172.98,0.76]
[1641031602440,9.4321,173.07,172.96,0.76]
[1641031602740,8.9321,173.07,172.96,0.26]
[1641031602940,8.9321,173.07,172.95,24.82426458]
[1641031603141,8.9321,173.07,172.99,8.6704]
[1641031603344,8.9321,173.07,172.99,9.1704]
[1641031603542,8.9321,173.07,172.99,8.9304]
[1641031603972,8.6701,173.08,172.99,8.9304]
[1641031604142,28.8989,173.14,172.99,9.4304]
[1641031604342,29.3989,173.14,172.99,9.4304]
[1641031604741,0.5,173.14,172.99,9.4304]
[1641031605043,1.42669368,173.13,172.99,9.4304]
[1641031605442,2.18669368,173.13,172.99,9.4304]
[1641031605643,8.6703,173.08,172.99,9.4304]
[1641031606644,8.6703,173.08,172.99,0.76]
[1641031606844,9.1703,173.08,172.99,0.26]
[1641031607044,9.4303,173.08,172.97,0.5]
[1641031607243,10.85699368,173.08,172.97,0.5]
[1641031607446,10.85699368,173.08,172.96,79.5061]
[1641031607644,10.85699368,173.08,172.96,79.0061]
[1641031609947,10.85699368,173.08,172.96,87.9379]
[1641031610351,8.6703,173.08,172.96,88.4379]
[1641031611351,8.6696,173.09,172.96,88.4379]
[1641031612777,8.9296,173.09,172.96,88.4379]
[1641031613779,8.9296,173.09,172.96,88.1779]
[1641031613978,9.4296,173.09,172.96,88.1779]
[1641031615078,9.4296,173.09,172.96,88.4379]
[1641031616082,8.9296,173.09,172.96,88.4379]
[1641031616482,8.6696,173.09,172.96,88.4379]
[1641031616880,1.55557168,173.1,172.96,88.4379]
[1641031617284,1.55557168,173.12,172.96,88.4379]
[1641031617480,2.05557168,173.12,172.96,88.4379]
[1641031617882,8.9285,173.12,172.96,88.4379]
[1641031618087,8.6685,173.12,172.96,88.4379]
[1641031618284,1.55557168,173.13,172.97,1.42669368]
[1641031618490,2.333395,173.12,173.05,8.6668]
[1641031618687,2.333395,173.12,173.06,26.91743373]
[1641031618887,2.333395,173.12,173.06,27.41743373]
[1641031619083,2.333395,173.12,173.06,27.67743373]
[1641031620587,2.333395,173.12,173.06,0.76]
[1641031620787,2.333395,173.12,173.06,0.26]
[1641031621086,2.333395,173.12,172.98,74.6442]
[1641031621585,2.333395,173.12,172.99,1.42669368]
[1641031621785,2.333395,173.12,173.05,8.6671]
[1641031621989,2.333395,173.12,173.05,8.9271]
[1641031622185,2.333395,173.12,173.05,9.4271]
[1641031622387,2.333395,173.12,173.05,0.76]
[1641031622586,2.333395,173.12,173.05,0.5]
[1641031622786,2.333395,173.12,173.0,24.29604559]
[1641031623590,2.333395,173.12,173.04,8.668]
[1641031623988,2.333395,173.12,173.04,9.428]
[1641031625091,11.001395,173.12,173.0,23.53604559]
[1641031625288,11.261395,173.12,173.0,24.03604559]
[1641031625490,11.761395,173.12,173.0,24.03604559]
[1641031626489,11.761395,173.12,173.0,24.29604559]
[1641031626689,11.761395,173.12,173.0,32.96564559]
[1641031627190,11.261395,173.12,173.0,32.96564559]
[1641031627794,11.761395,173.12,173.0,32.96564559]
[1641031628395,2.333395,173.12,173.0,32.96564559]
[1641031628598,2.333395,173.12,173.01,1.42669368]
[1641031628798,2.333395,173.12,173.06,8.6664]
[1641031628996,2.333395,173.12,173.07,23.34572591]
[1641031629396,2.333395,173.12,173.07,24.10572591]
[1641031630701,2.333395,173.12,173.09,8.6649]
[1641031630905,2.333395,173.12,173.1,4.01313039]
[1641031631102,2.333395,173.12,173.1,4.27313039]
[1641031635406,2.333395,173.12,173.1,4.01313039]
[1641031635608,11.761595,173.12,173.1,4.01313039]
[1641031635809,11.261595,173.12,173.1,4.01313039]
[1641031636408,2.05126954,173.11,173.04,26.17258754]
[1641031636612,2.05126954,173.11,173.04,35.10038754]
[1641031636808,2.05126954,173.11,173.04,35.60038754]
[1641031637926,2.31126954,173.11,173.04,35.60038754]
[1641031639531,10.97976954,173.11,173.04,0.76]
[1641031639929,10.97976954,173.11,173.02,9.4285]
[1641031640129,10.97976954,173.11,173.02,8.9285]
[1641031640331,10.97976954,173.11,173.02,9.4285]
[1641031640529,10.97976954,173.11,173.02,35.6912867]
[1641031641432,2.31126954,173.11,173.02,35.6912867]
[1641031642728,2.05126954,173.11,173.02,35.6912867]
[1641031643529,1.55557168,173.17,173.02,35.6912867]
[1641031643730,1.55557168,173.18,173.02,41.7272867]
[1641031643931,2.05557168,173.18,173.02,41.7272867]
[1641031644331,8.6669,173.15,173.02,41.7272867]
[1641031644930,8.9269,173.15,173.02,41.7272867]
[1641031646036,8.9269,173.15,173.02,35.6912867]
[1641031646234,1.42669368,173.14,173.02,35.6912867]
[1641031646434,8.6676,173.13,173.02,35.6912867]
[1641031648140,10.09369368,173.14,173.02,35.6912867]
[1641031648339,8.667,173.14,173.02,35.6912867]
[1641031649144,8.667,173.14,173.02,35.4312867]
[1641031649342,8.927,173.14,173.02,35.4312867]
[1641031649545,9.427,173.14,173.02,35.4312867]
[1641031650545,9.427,173.14,173.02,35.6912867]
[1641031650945,1.55557168,173.13,173.02,35.6912867]
[1641031651245,8.6684,173.12,173.02,35.4312867]
[1641031651646,8.9284,173.12,173.02,35.4312867]
[1641031652645,8.9284,173.12,173.02,35.6912867]
[1641031654649,1.55557168,173.13,173.02,35.6912867]
[1641031655049,8.6673,173.14,173.02,35.6912867]
[1641031657253,8.6665,173.15,173.02,35.6912867]
[1641031657652,8.9265,173.15,173.02,35.6912867]
[1641031657854,10.48207168,173.15,173.02,35.6912867]
[1641031659259,1.55557168,173.15,173.02,35.6912867]
[1641031659457,1.55557168,173.15,173.09,8.6648]
[1641031659658,1.55557168,173.15,173.1,28.07225794]
[1641031659857,1.55557168,173.15,173.1,28.57225794]
[1641031660161,1.55557168,173.17,173.1,28.83225794]
[1641031660758,0.26,173.17,173.1,28.83225794]
[1641031660959,10.48037168,173.19,173.1,37.49705794]
[1641031661365,10.98037168,173.19,173.1,37.49705794]
[1641031662059,12.40706536,173.19,173.1,37.49705794]
[1641031663059,12.40706536,173.19,173.1,28.83225794]
[1641031663661,12.40706536,173.19,173.1,0.26]
[1641031664099,12.40706536,173.19,173.09,8.9258]
[1641031664299,12.40706536,173.19,172.99,78.5251]
[1641031664495,1.55557168,173.17,172.99,79.0251]
[1641031664695,1.55557168,173.17,173.0,29.58314972]
[1641031664893,1.42669368,173.16,173.0,30.08314972]
[1641031665098,1.55557168,173.15,173.01,77.2883]
[1641031665294,1.55557168,173.15,173.02,8.6689]
[1641031665495,2.31557168,173.15,173.02,9.1689]
[1641031665695,1.42669368,173.14,173.02,9.1689]
[1641031665895,3.48226536,173.14,173.02,9.4289]
[1641031666097,3.74226536,173.14,173.02,0.76]
[1641031666295,3.74226536,173.14,173.0,8.6699]
[1641031666296,8.6698,173.08,173.0,8.6699]
[1641031666495,8.6698,173.08,172.99,78.5251]
[1641031666496,8.9298,173.08,172.99,78.5251]
[1641031666803,1.42669368,173.07,172.99,78.5251]
[1641031666995,1.68669368,173.07,172.99,78.5251]
[1641031667495,1.42669368,173.07,172.99,78.5251]
[1641031667727,1.55557168,173.11,172.99,87.6958]
[1641031667996,1.81557168,173.11,172.99,92.8618]
[1641031668194,0.26,173.11,172.99,92.8618]
[1641031668795,8.6683,173.12,172.99,93.1218]
[1641031669200,1.55557168,173.13,172.99,92.8618]
[1641031669403,2.05557168,173.13,172.99,92.8618]
[1641031669805,8.6693,173.09,172.99,87.6958]
[1641031670606,8.6693,173.09,172.99,87.9558]
[1641031671605,8.6688,173.1,172.99,87.9558]
[1641031671806,1.55557168,173.11,172.99,87.9558]
[1641031672008,1.55557168,173.11,172.99,96.34549368]
[1641031673210,1.55557168,173.13,172.99,96.34549368]
[1641031674109,11.94184153,173.17,172.99,96.34549368]
[1641031674110,1.55557168,173.15,172.99,105.34734844]
[1641031675338,1.55557168,173.16,172.99,105.34734844]
[1641031676745,10.22137168,173.16,172.99,105.34734844]
[1641031678145,1.55557168,173.15,172.99,96.34549368]
[1641031678545,1.81557168,173.15,172.99,96.34549368]
[1641031678749,2.31557168,173.15,172.99,94.9188]
[1641031678946,1.55557168,173.14,172.99,94.9188]
[1641031679148,1.55557168,173.14,172.99,94.4188]
[1641031679346,1.55557168,173.15,172.99,94.4188]
[1641031679545,1.55557168,173.15,172.99,95.84549368]
[1641031680346,1.55557168,173.15,172.99,96.34549368]
[1641031680946,1.55557168,173.16,172.99,96.34549368]
[1641031681746,1.55557168,173.15,172.99,96.34549368]
[1641031682147,1.55557168,173.16,172.99,96.34549368]
[1641031682849,1.55557168,173.17,172.99,96.34549368]
[1641031683148,1.81557168,173.17,172.99,96.34549368]
[1641031683547,0.26,173.17,172.99,96.34549368]
[1641031684046,1.81557168,173.18,172.99,96.34549368]
[1641031685050,1.55557168,173.17,172.99,96.34549368]
[1641031685452,1.81557168,173.17,172.99,96.34549368]
[1641031685653,10.48087168,173.17,172.99,96.34549368]
[1641031687253,10.48087168,173.17,172.99,89.38249368]
[1641031687656,10.98087168,173.17,172.99,89.38249368]
[1641031687854,10.98087168,173.17,172.99,89.12249368]
[1641031688054,10.98087168,173.17,172.99,87.6958]
[1641031688555,8.6669,173.14,172.99,87.6958]
[1641031688755,10.22247168,173.14,172.99,89.12249368]
[1641031688955,10.48247168,173.14,172.99,89.12249368]
[1641031689355,8.9269,173.14,172.99,89.38249368]
[1641031689758,8.9269,173.14,172.99,87.9558]
[1641031689959,9.4269,173.14,172.99,87.9558]
[1641031690157,10.98247168,173.14,172.99,87.9558]
[1641031690757,1.55557168,173.13,172.99,87.9558]
[1641031690959,8.6682,173.12,172.99,87.9558]
[1641031691761,10.22377168,173.12,172.99,87.9558]
[1641031692462,8.6682,173.12,172.99,87.9558]
[1641031694264,8.6682,173.12,172.99,87.6958]
[1641031694464,9.4282,173.12,172.99,87.6958]
[1641031695264,8.6696,173.09,172.99,87.6958]
[1641031695664,8.9296,173.09,172.99,87.9558]
[1641031696065,9.4296,173.09,172.99,87.9558]
[1641031697365,8.9296,173.09,172.99,87.9558]
[1641031697968,8.6696,173.09,172.99,87.9558]
[1641031698168,10.22427168,173.11,172.99,89.38249368]
[1641031698368,1.55557168,173.11,172.99,94.92749368]
[1641031698568,1.55557168,173.12,172.99,94.92749368]
[1641031699466,1.55557168,173.14,172.99,94.92749368]
[1641031700469,1.81557168,173.14,172.99,94.92749368]
[1641031700670,10.48237168,173.14,172.99,94.92749368]
[1641031701170,10.22237168,173.14,172.99,94.92749368]
[1641031701497,1.55557168,173.15,172.99,94.92749368]
[1641031702070,10.22137168,173.16,172.99,94.92749368]
[1641031702273,1.55557168,173.16,172.99,94.92749368]
[1641031703370,81.46857168,173.17,172.99,94.92749368]
[1641031703572,81.72857168,173.17,172.99,94.92749368]
[1641031704574,90.39387168,173.17,172.99,94.92749368]
[1641031706078,1.55557168,173.16,172.99,94.92749368]
[1641031706578,0.26,173.16,172.99,94.92749368]
[1641031706778,8.9259,173.16,172.99,94.92749368]
[1641031707179,10.48147168,173.16,172.99,94.92749368]
[1641031709605,10.22147168,173.16,172.99,94.92749368]
[1641031709813,1.55557168,173.16,172.99,94.92749368]
[1641031710207,81.46857168,173.17,172.99,94.92749368]
[1641031710807,1.55557168,173.16,172.99,94.92749368]
[1641031711008,1.81557168,173.16,172.99,94.92749368]
[1641031711209,8.6666,173.15,172.99,94.92749368]
[1641031712108,0.26,173.16,172.99,94.92749368]
[1641031712610,90.39437168,173.17,172.99,94.92749368]
[1641031713011,1.55557168,173.16,172.99,94.92749368]
[1641031713212,1.55557168,173.16,172.99,100.12932175]
[1641031713409,1.55557168,173.18,173.0,8.35185476]
[1641031713608,1.55557168,173.18,173.09,8.6637]
[1641031713909,1.55557168,173.18,173.09,39.40702741]
[1641031714111,1.55557168,173.19,173.09,39.66702741]
[1641031715814,1.55557168,173.2,173.09,39.66702741]
[1641031719319,1.55557168,173.2,173.1,1.42669368]
[1641031719516,1.55557168,173.2,173.15,8.6613]
[1641031719715,1.55557168,173.21,173.15,8.6613]
[1641031719915,1.55557168,173.21,173.15,9.4213]
[1641031720317,1.55557168,173.22,173.15,9.4213]
[1641031720518,1.55557168,173.22,173.15,8.9213]
[1641031720715,1.55557168,173.22,173.15,9.4213]
[1641031721121,1.55557168,173.21,173.15,9.4213]
[1641031723016,8.6623,173.23,173.15,9.4213]
[1641031723419,8.9223,173.23,173.15,9.4213]
[1641031724121,8.9223,173.23,173.15,8.9213]
[1641031724320,8.9223,173.23,173.15,9.4213]
[1641031726721,0.26,173.23,173.15,9.4213]
[1641031727221,8.9218,173.24,173.15,9.4213]
[1641031730624,0.26,173.24,173.15,9.4213]
[1641031731025,10.62944457,173.25,173.15,9.4213]
[1641031732729,1.55557168,173.22,173.15,9.4213]
[1641031735028,1.55557168,173.21,173.15,9.4213]
[1641031735634,1.55557168,173.22,173.15,9.4213]
[1641031737533,1.55557168,173.2,173.15,9.4213]
[1641031738333,1.55557168,173.21,173.15,9.4213]
[1641031738835,1.55557168,173.22,173.15,9.4213]
[1641031741035,1.55557168,173.21,173.15,9.4213]
[1641031741937,1.55557168,173.22,173.15,9.4213]
[1641031742733,1.81557168,173.22,173.15,9.1613]
[1641031743535,1.55557168,173.21,173.15,9.1613]
[1641031744234,1.55557168,173.21,173.15,9.4213]
[1641031748540,10.47877168,173.21,173.14,8.6634]
[1641031748741,10.97877168,173.21,173.01,76.5177]
[1641031748941,10.97877168,173.21,173.02,72.9211]
[1641031749141,1.55557168,173.19,173.02,72.9211]
[1641031749544,2.31557168,173.19,173.03,24.62065249]
[1641031749943,2.31557168,173.19,173.03,25.12065249]
[1641031750145,1.55557168,173.17,173.03,25.38065249]
[1641031750374,1.55557168,173.17,173.1,8.6651]
[1641031750574,1.55557168,173.17,173.1,8.9251]
[1641031750772,1.55557168,173.17,173.1,9.4251]
[1641031751573,1.55557168,173.17,173.1,33.19693301]
[1641031757679,1.55557168,173.18,173.1,33.19693301]
[1641031768292,8.9242,173.19,173.1,33.19693301]
[1641031768497,9.4242,173.19,173.1,33.19693301]
[1641031770396,8.9242,173.19,173.1,33.19693301]
[1641031770896,9.4242,173.19,173.1,33.19693301]
[1641031771299,8.9242,173.19,173.1,33.19693301]
[1641031774895,9.4242,173.19,173.1,33.19693301]
[1641031775097,10.97977168,173.19,173.1,33.19693301]
[1641031775500,10.47977168,173.19,173.1,33.19693301]
[1641031776097,1.55557168,173.18,173.1,33.19693301]
[1641031776521,10.22047168,173.18,173.1,33.19693301]
[1641031784534,10.48047168,173.18,173.1,33.19693301]
[1641031785136,10.22047168,173.18,173.1,33.19693301]
[1641031786937,10.22047168,173.18,173.1,9.4251]
[1641031787137,10.98047168,173.18,173.1,8.9251]
[1641031787337,10.98047168,173.18,173.1,8.6651]
[1641031787538,1.42669368,173.17,173.03,76.7292]
[1641031787739,7.83269368,173.17,173.03,76.7292]
[1641031787939,1.55557168,173.12,173.01,25.74942799]
[1641031788344,2.31557168,173.12,173.01,25.74942799]
[1641031788739,1.55557168,173.11,173.01,26.24942799]
[1641031788938,2.05557168,173.11,173.01,26.50942799]
[1641031789139,2.31557168,173.11,173.01,26.50942799]
[1641031789739,8.6693,173.09,173.01,35.17892799]
[1641031791240,8.6693,173.09,173.01,9.4295]
[1641031795244,8.6693,173.09,173.01,8.9295]
[1641031795443,9.1693,173.09,173.01,8.9295]
[1641031795845,9.1693,173.09,173.01,8.6695]
[1641031796847,9.1693,173.09,173.01,9.1695]
[1641031797248,9.1693,173.09,173.01,9.4295]
[1641031798249,8.6693,173.09,173.01,9.4295]
[1641031801353,8.6688,173.1,173.01,9.4295]
[1641031803480,9.4288,173.1,173.01,8.6695]
[1641031803680,9.4288,173.1,172.99,100.40950711]
[1641031803681,9.4288,173.1,173.0,8.67]
[1641031804281,9.4288,173.1,172.99,74.8738]
[1641031804481,9.4288,173.1,172.99,75.3738]
[1641031804981,1.55557168,173.09,172.99,75.6338]
[1641031805383,8.6702,173.08,172.99,84.3042]
[1641031808389,10.22477168,173.1,172.99,84.3042]
[1641031808588,1.55557168,173.1,172.99,84.3042]
[1641031808987,1.55557168,173.1,172.99,90.2652]
[1641031809191,1.55557168,173.12,172.99,90.2652]
[1641031809589,10.48337168,173.12,172.99,90.2652]
[1641031810599,10.48337168,173.12,173.0,1.42669368]
[1641031810801,10.48337168,173.12,173.04,8.6679]
[1641031811105,10.48337168,173.12,173.04,9.4279]
[1641031811501,10.98337168,173.12,173.04,8.9279]
[1641031811802,10.98337168,173.12,173.04,0.26]
[1641031811999,10.98337168,173.12,173.02,8.6685]
[1641031812400,10.98337168,173.12,173.02,8.9285]
[1641031812603,1.55557168,173.11,173.02,8.9285]
[1641031812802,8.669,173.1,173.02,8.9285]
[1641031813001,8.669,173.1,173.02,9.4285]
[1641031818208,8.6683,173.11,173.02,8.9285]
[1641031819208,8.6683,173.11,173.02,8.6685]
[1641031819410,8.6683,173.11,173.02,9.1685]
[1641031819909,10.72387168,173.11,173.02,9.1685]
[1641031820510,10.72387168,173.11,173.02,9.4285]
[1641031821010,10.98387168,173.11,173.02,9.4285]
[1641031821210,10.72387168,173.11,173.02,9.4285]
[1641031822613,9.1683,173.11,173.02,9.4285]
[1641031823013,0.5,173.11,173.02,16.2545]
[1641031823213,1.55557168,173.12,173.02,16.2545]
[1641031823817,1.55557168,173.13,173.02,16.2545]
[1641031824918,1.55557168,173.13,173.08,8.6655]
[1641031825116,1.55557168,173.14,173.09,27.38886342]
[1641031825617,1.55557168,173.16,173.09,28.14886342]
[1641031826115,1.55557168,173.16,173.09,27.88886342]
[1641031826318,2.05557168,173.16,173.09,0.5]
[1641031826716,2.05557168,173.16,173.03,28.8869]
[1641031826917,1.55557168,173.16,173.03,1.92669368]
[1641031827118,1.55557168,173.16,173.03,0.5]
[1641031827317,2.05557168,173.16,173.09,8.6654]
[1641031827520,10.22087168,173.17,173.09,9.4254]
[1641031827918,2.05557168,173.17,173.09,9.4254]
[1641031828218,1.55557168,173.17,173.09,9.4254]
[1641031828819,2.05557168,173.17,173.09,9.4254]
[1641031829546,1.55557168,173.17,173.09,9.4254]
[1641031829747,2.05557168,173.17,173.09,9.1654]
[1641031830147,1.55557168,173.16,173.09,9.1654]
[1641031831044,1.55557168,173.16,173.09,9.4254]
[1641031831646,1.55557168,173.17,173.09,9.4254]
[1641031832246,2.05557168,173.17,173.09,9.4254]
[1641031832849,0.5,173.17,173.09,0.76]
[1641031833049,0.5,173.17,173.09,0.5]
[1641031833250,2.05557168,173.18,173.08,9.4261]
[1641031833449,1.55557168,173.15,173.08,9.4261]
[1641031834252,1.55557168,173.17,173.08,9.4261]
[1641031834451,8.6661,173.16,173.08,9.4261]
[1641031834950,9.1661,173.16,173.08,9.4261]
[1641031835154,10.72167168,173.16,173.08,9.4261]
[1641031835550,10.72167168,173.16,173.08,0.26]
[1641031835952,10.72167168,173.16,173.07,9.4265]
[1641031836351,1.55557168,173.15,173.07,9.4265]
[1641031836553,2.05557168,173.15,173.07,8.9265]
[1641031836755,8.6668,173.14,173.07,8.9265]
[1641031836954,9.1668,173.14,173.07,8.9265]
[1641031838452,9.1668,173.14,173.07,9.4265]
[1641031839155,9.1668,173.14,173.07,8.9265]
[1641031839956,9.1668,173.14,173.07,9.4265]
[1641031840157,9.1668,173.14,173.07,8.9265]
[1641031840556,9.1668,173.14,173.07,9.4265]
[1641031841055,9.1668,173.14,173.07,8.9265]
[1641031841257,9.1668,173.14,173.07,9.4265]
[1641031844566,9.1668,173.14,173.07,9.1665]
[1641031844762,9.1668,173.14,173.04,176.92967005]
[1641031844965,9.1668,173.14,173.06,8.6671]
[1641031845165,10.72237168,173.14,173.04,177.42967005]
[1641031845564,10.98237168,173.14,173.04,177.42967005]